Workbook

Sheet Cover
B3: Excel + VBA
B4: für Controller
B7: Kapitel | C7: 10
B8: Thema | C8: Operatives Projekt-Controlling
B10: Inhalt | C10: Fortschrittsgrad
B18: Version | C18: 1.0
B19: Autor | C19: Harald Nahrstedt
B20: Datum | C20: 2025-04-29
B23: Springer Verlag

Sheet Status
A1: Aufgabe | B1: Aufwand Plan | C1: Aufwand Ist | D1: Aufwand Rest | E1: Fertigungsgrad | F1: kumulierter FG
A2: A | B2: 0.25 | C2: 0.25 | D2: =Plan-Ist -> 4 | E2: =IF(Plan>0,Ist/Plan,0) -> 0.6 | F2: =B2*E2 -> 0.15
A3: B | B3: 0.2 | C3: 0 | D3: 10 | E3: 0.5 | F3: =F2+B3*E3 -> 0.25
A4: C | B4: 0.1 | C4: 0.1 | D4: 17 | E4: 0.15 | F4: =F3+B4*E4 -> 0.265
A5: D | B5: 0.15 | C5: 0.1 | D5: 10 | E5: 0.3333333333 | F5: 0.315
A6: E | B6: 0.2 | C6: 0.1 | D6: 25 | E6: 0 | F6: 0.315
A7: F | B7: 0.1 | C7: 0 | D7: 10 | E7: 0 | F7: 0.315
A8: Gesamt | B8: =SUM(Plan) -> 100 | C8: =SUM(Ist) -> 24 | D8: =SUM(Rest) -> 80 | F8: =F7 -> 0.315

Sheet 50-50
A1: Aufgabe | B1: Aufwand Plan | C1: Aufwand Ist | D1: Aufwand Rest | E1: Fertigungsgrad | F1: kumulierter FG
A2: A | B2: 0.25 | C2: 0.25 | D2: =B2-C2 -> 0 | E2: =IF(Plan>0,IF(Ist/Plan=1,1,IF(Ist/Plan>=0.5,0.5,0)),0) -> 0.5 | F2: =B2*E2 -> 0.125
A3: B | B3: 0.2 | C3: 0 | D3: =B3-C3 -> 0.2 | E3: 0.5 | F3: =F2+B3*E3 -> 0.225
A4: C | B4: 0.1 | C4: 0.1 | D4: 0 | E4: 0 | F4: =F3+B4*E4 -> 0.225
A5: D | B5: 0.15 | C5: 0.1 | D5: 0.05 | E5: 0 | F5: 0.225
A6: E | B6: 0.2 | C6: 0.1 | D6: 0.1 | E6: 0 | F6: 0.225
A7: F | B7: 0.1 | C7: 0 | D7: 0.1 | E7: 0 | F7: 0.225
A8: Gesamt | B8: =SUM(B2:B7) -> 1 | C8: =SUM(C2:C7) -> 0.55 | D8: =SUM(D2:D7) -> 0.45 | F8: =F7 -> 0.225

Sheet 0-100
A1: Aufgabe | B1: Aufwand Plan | C1: Aufwand Ist | D1: Aufwand Rest | E1: Fertigungsgrad | F1: kumulierter FG
A2: A | B2: 0.25 | C2: 0.25 | D2: =B2-C2 -> 0 | E2: =IF(Plan>0,IF(Ist/Plan=1,1,0),0) -> 0 | F2: =B2*E2 -> 0
A3: B | B3: 0.2 | C3: 0 | D3: =B3-C3 -> 0.2 | E3: 0 | F3: =F2+B3*E3 -> 0
A4: C | B4: 0.1 | C4: 0.1 | D4: 0 | E4: 0 | F4: =F3+B4*E4 -> 0
A5: D | B5: 0.15 | C5: 0.1 | D5: 0.05 | E5: 0 | F5: 0
A6: E | B6: 0.2 | C6: 0.1 | D6: 0.1 | E6: 0 | F6: 0
A7: F | B7: 0.1 | C7: 0 | D7: 0.1 | E7: 0 | F7: 0
A8: Gesamt | B8: =SUM(B2:B7) -> 1 | C8: =SUM(C2:C7) -> 0.55 | D8: =SUM(D2:D7) -> 0.45 | F8: =F7 -> 0

Sheet Step-To-Step
A1: Meilenstein | B1: Aufwand | C1: Fertigungsgrad | D1: kumulierter FG
A2: MS 1 | B2: 80 | C2: =Aufwand/Gesamt ->  | D2: =C2 -> 
A3: MS 2 | B3: 60 | D3: =D2+C3 -> 
A4: MS 3 | B4: 100 | D4: =D3+C4 -> 
A5: MS 4 | B5: 130
A6: MS 5 | B6: 110
A7: MS 6 | B7: 20
A8: Gesamt | B8: =SUM(B2:B7) -> 500

Sheet Relativ
A1: Arbeitspaket | B1: Aufwand Plan | C1: Aufwand Ist | D1: Aufwand Rest | E1: Fertigungsgrad
A2: A 1 | B2: 10 | C2: 6 | D2: 4 | E2: =Ist/(Ist+Rest) -> 0.6
A3: A 2 | B3: 20 | C3: 10 | D3: 12 | E3: 0.4545454545
A4: A 3 | B4: 20 | C4: 3 | D4: 14 | E4: 0.1764705882
A5: A 4 | B5: 15 | C5: 5 | D5: 15 | E5: 0.25
A6: A 5 | B6: 25 | C6: 0 | D6: 25 | E6: 0
A7: A 6 | B7: 10 | C7: 0 | D7: 10 | E7: 0
A8: Gesamt | B8: =SUM(Plan) -> 100 | C8: =SUM(Ist) -> 24 | D8: =SUM(Rest) -> 80 | E8: =C8/(C8+D8) -> 0.2307692308
